fUSD/lending_fUSD_20240828
["ID","MTS","AMOUNT","RATE_DAILY","PERIOD"]
[336492865,1724877317879,-621.9,0.00038904,120]
[336492866,1724877317917,-500.0,0.00038904,120]
[336492867,1724877317960,-1041.08,0.00038904,120]
[336492868,1724877317998,-813.98,0.00038904,120]
[336492869,1724877318042,-500.0,0.00038904,120]
[336492870,1724877318288,-1475.88,0.00038904,120]
[336492871,1724877318327,-190.74564469,0.00038904,120]
[336492872,1724877318369,-500.0,0.00038904,120]
[336492873,1724877318414,-500.0,0.00038904,120]
[336492874,1724877318461,-1055.87,0.00038904,120]
[336492875,1724877318502,-586.48,0.00038904,120]
[336492876,1724877318543,-500.0,0.00038904,120]
[336492877,1724877318581,-500.0,0.00038904,120]
[336492878,1724877318618,-500.0,0.00038904,120]
[336492879,1724877318657,-500.0,0.00038904,120]
[336492880,1724877318694,-562.02,0.00038904,120]
[336492881,1724877318735,-5156.31,0.00038904,120]
[336492882,1724877318773,-500.0,0.00038904,120]
[336492883,1724877318811,-1524.84,0.00038904,120]
[336492884,1724877318851,-500.0,0.00038904,120]
[336492885,1724877318890,-500.0,0.00038904,120]
[336492886,1724877318928,-642.88029333,0.00038904,120]
[336492887,1724877318968,-1594.89,0.00038904,120]
[336492888,1724877319007,-500.0,0.00038904,120]
[336492889,1724877319047,-1183.62,0.00038904,120]
[336492890,1724877319089,-1413.5,0.00038904,120]
[336492891,1724877319127,-500.0,0.00038904,120]
[336492892,1724877319164,-500.0,0.00038904,120]
[336492893,1724877319205,-500.0,0.00038904,120]
[336492894,1724877319244,-993.61,0.00038904,120]
[336492895,1724877319282,-3811.75,0.00038904,120]
[336492896,1724877319320,-500.0,0.00038904,120]
[336492897,1724877319358,-3491.82,0.00038904,120]
[336492898,1724877319396,-500.0,0.00038904,120]
[336492899,1724877319435,-500.0,0.00038904,120]
[336492900,1724877319475,-505.44,0.00038904,120]
[336492901,1724877319516,-543.62,0.00038904,120]
[336492902,1724877319556,-686.82,0.00038904,120]
[336492903,1724877319596,-802.66,0.00038904,120]
[336492904,1724877319637,-958.67,0.00038904,120]
[336492905,1724877319683,-500.0,0.00038904,120]
[336492906,1724877319724,-500.0,0.00038904,120]
[336492907,1724877319765,-3862.48,0.00038904,120]
[336492908,1724877319805,-3416.11,0.00038904,120]
[336492909,1724877319843,-1090.54,0.00038904,120]
[336492910,1724877319881,-500.0,0.00038904,120]
[336492911,1724877319921,-4775.08,0.00038904,120]
[336492912,1724877319963,-500.0,0.00038904,120]
[336492913,1724877320002,-500.0,0.00038904,120]
[336492914,1724877320039,-500.0,0.00038904,120]
[336492915,1724877320077,-516.20092935,0.00038904,120]
[336492916,1724877320113,-501.40122462,0.00038904,120]
[336492917,1724877320150,-677.48,0.00038904,120]
[336492918,1724877320188,-1972.42,0.00038904,120]
[336492919,1724877320228,-500.0,0.00038904,120]
[336492920,1724877320264,-737.2,0.00038904,120]
[336492921,1724877320300,-561.98566176,0.00038904,120]
[336492922,1724877320338,-600.0,0.00038904,120]
[336492923,1724877320374,-837.17,0.00038904,120]
[336492924,1724877320413,-2697.48,0.00038904,120]
[336492925,1724877320455,-6496.4,0.00038904,120]
[336492926,1724877320493,-566.05,0.00038904,120]
[336492927,1724877320531,-559.85,0.00038904,120]
[336492928,1724877320570,-1623.8,0.00038904,120]
[336492929,1724877320606,-500.0,0.00038904,120]
[336492930,1724877320645,-381.44587786,0.00038904,120]
[336492931,1724877320682,-1191.24,0.00038904,120]
[336492932,1724877320721,-3428.78,0.00038904,120]
[336492933,1724877320760,-500.0,0.00038904,120]
[336492934,1724877320798,-1840.85,0.00038904,120]
[336492935,1724877320834,-500.0,0.00038904,120]
[336492936,1724877320870,-500.0,0.00038904,120]
[336492937,1724877320905,-500.0,0.00038904,120]
[336492938,1724877320942,-500.0,0.00038904,120]
[336492939,1724877320979,-500.0,0.00038904,120]
[336492940,1724877321017,-793.28,0.00038904,120]
[336492941,1724877321054,-500.0,0.00038904,120]
[336492942,1724877321090,-734.76,0.00038904,120]
[336492943,1724877321128,-1742.35,0.00038904,120]
[336492944,1724877321164,-1062.68,0.00038904,120]
[336492945,1724877321203,-500.0,0.00038904,120]
[336492946,1724877321240,-500.0,0.00038904,120]
[336492947,1724877321276,-2363.57,0.00038904,120]
[336492948,1724877321313,-500.0,0.00038904,120]
[336492949,1724877321354,-842.77,0.00038904,120]
[336492950,1724877321391,-500.0,0.00038904,120]
[336492951,1724877321428,-566.9,0.00038904,120]
[336492952,1724877321467,-2246.55,0.00038904,120]
[336492953,1724877321503,-500.0,0.00038904,120]
[336492954,1724877321540,-500.0,0.00038904,120]
[336492955,1724877321577,-500.0,0.00038904,120]
[336492956,1724877321615,-889.72,0.00038904,120]
[336492957,1724877321659,-626.04,0.00038904,120]
[336492958,1724877321703,-1663.62,0.00038904,120]
[336492959,1724877321749,-500.0,0.00038904,120]
[336492960,1724877321793,-500.0,0.00038904,120]
[336492961,1724877321837,-827.96,0.00038904,120]
[336492962,1724877321880,-1610.07,0.00038904,120]
[336492963,1724877321920,-1175.19,0.00038904,120]
[336492964,1724877321960,-1467.33,0.00038904,120]
[336492965,1724877322000,-2660.37,0.00038904,120]
[336492966,1724877322037,-500.0,0.00038904,120]
[336492967,1724877322074,-150.0,0.00038904,120]
[336492968,1724877322110,-1557.6,0.00038904,120]
[336492969,1724877322149,-881.92,0.00038904,120]
[336492970,1724877322185,-924.64,0.00038904,120]
[336492971,1724877322220,-500.0,0.00038904,120]
[336492972,1724877322256,-500.0,0.00038904,120]
[336492973,1724877322292,-500.0,0.00038904,120]
[336492974,1724877322529,-500.0,0.00038904,120]
[336492975,1724877322568,-500.0,0.00038904,120]
[336492976,1724877322606,-500.0,0.00038904,120]
[336492977,1724877322642,-500.0,0.00038904,90]
[336492978,1724877322680,-1804.56,0.00038904,120]
[336492979,1724877322718,-508.86857131,0.00038904,120]
[336492980,1724877322760,-150.0,0.00038904,120]
[336492981,1724877322797,-500.0,0.00038904,120]
[336492982,1724877322834,-1782.39,0.00038904,120]
[336492983,1724877322871,-500.0,0.00038904,120]
[336492984,1724877322907,-500.0,0.00038904,120]
[336492985,1724877322943,-500.0,0.00038904,120]
[336492986,1724877322988,-500.0,0.00038904,120]
[336492987,1724877323025,-2345.6,0.00038904,120]
[336492988,1724877323061,-673.89,0.00038904,120]
[336492989,1724877323098,-500.0,0.00038904,120]
[336492990,1724877323135,-1509.86,0.00038904,120]
[336492991,1724877323173,-500.0,0.00038904,120]
[336492992,1724877323210,-500.0,0.00038904,120]
[336492993,1724877323245,-500.0,0.00038904,120]
[336492994,1724877323283,-1378.57,0.00038904,120]
[336492995,1724877323318,-1092.14,0.00038904,120]
[336492996,1724877323353,-500.0,0.00038904,120]
[336492997,1724877323389,-1145.74,0.00038904,120]
[336492998,1724877323426,-500.0,0.00038904,120]
[336492999,1724877323462,-500.0,0.00038904,120]
[336493000,1724877323498,-3319.36,0.00038904,120]
[336493001,1724877323535,-5000.0,0.00038904,120]
[336493002,1724877323571,-1194.86,0.00038904,120]
[336493003,1724877323608,-500.0,0.00038904,120]
[336493004,1724877323649,-500.0,0.00038904,120]
[336493005,1724877323687,-500.0,0.00038904,120]
[336493006,1724877323727,-500.0,0.00038904,120]
[336493007,1724877323767,-500.0,0.00038904,120]
[336493008,1724877323806,-393.18858142,0.00038904,120]
[336493009,1724877323844,-2106.49,0.00038904,120]
[336493010,1724877323884,-2013.62,0.00038904,120]
[336493011,1724877323924,-500.0,0.00038904,120]
[336493012,1724877323963,-500.0,0.00038904,120]
[336493013,1724877324000,-500.0,0.00038904,120]
[336493014,1724877324038,-4056.51,0.00038904,120]
[336493015,1724877324076,-2941.73,0.00038904,120]
[336493016,1724877324115,-500.0,0.00038904,120]
[336493017,1724877324155,-824.49,0.00038904,120]
[336493018,1724877324193,-500.0,0.00038904,120]
[336493019,1724877324233,-500.0,0.00038904,120]
[336493020,1724877324271,-500.0,0.00038904,120]
[336493021,1724877324309,-3228.93,0.00038904,120]
[336493022,1724877324348,-1565.21,0.00038904,120]
[336493023,1724877324384,-1049.5,0.00038904,120]
[336493024,1724877324422,-1755.71,0.00038904,120]
[336493025,1724877324462,-2768.5,0.00038904,120]
[336493026,1724877324500,-500.0,0.00038904,120]
[336493027,1724877324539,-1143.49,0.00038904,120]
[336493028,1724877324577,-548.09,0.00038904,120]
[336493029,1724877324616,-3467.61,0.00038904,120]
[336493030,1724877324656,-500.0,0.00038904,120]
[336493031,1724877324695,-490.63,0.00038904,120]
[336493032,1724877324734,-4899.84,0.00038904,120]
[336493033,1724877324773,-1119.25,0.00038904,120]
[336493034,1724877324813,-1662.57,0.00038904,120]
[336493035,1724877324852,-1733.65,0.00038904,120]
[336493036,1724877324892,-500.0,0.00038904,120]
[336493037,1724877324932,-500.0,0.00038904,120]
[336493038,1724877324972,-500.0,0.00038904,120]
[336493039,1724877325011,-507.36679365,0.00038904,120]
[336493040,1724877325048,-500.0,0.00038904,120]
[336493041,1724877325085,-544.32678752,0.00038904,120]
[336493042,1724877325123,-1679.88,0.00038904,120]
[336493043,1724877325160,-4180.39,0.00038904,120]
[336493044,1724877325198,-500.0,0.00038904,120]
[336493045,1724877325240,-3894.15,0.00038904,120]
[336493046,1724877325277,-500.0,0.00038904,120]
[336493047,1724877325315,-500.0,0.00038904,120]
[336493048,1724877325352,-3379.59,0.00038904,120]
[336493049,1724877325389,-1311.71,0.00038904,120]
[336493050,1724877325427,-558.99385446,0.00038904,120]
[336493051,1724877325465,-1991.18,0.00038904,120]
[336493052,1724877325502,-4120.22,0.00038904,120]
[336493053,1724877325542,-1335.59,0.00038904,120]
[336493054,1724877325580,-500.0,0.00038904,120]
[336493055,1724877325618,-500.0,0.00038904,120]
[336493056,1724877325656,-739.33,0.00038904,120]
[336493057,1724877325694,-500.0,0.00038904,120]
[336493058,1724877325736,-2497.78,0.00038904,120]
[336493059,1724877325773,-500.0,0.00038904,120]
[336493060,1724877325812,-582.47,0.00038904,120]
[336493061,1724877325851,-500.0,0.00038904,120]
[336493062,1724877325890,-500.0,0.00038904,120]
[336493063,1724877325927,-979.05,0.00038904,120]
[336493064,1724877325965,-500.0,0.00038904,120]
[336493065,1724877326002,-500.0,0.00038904,120]
[336493066,1724877326038,-678.79,0.00038904,120]
[336493067,1724877326074,-2351.67,0.00038904,120]
[336493068,1724877326110,-2377.21,0.00038904,120]
[336493069,1724877326147,-500.0,0.00038904,120]
[336493070,1724877326183,-1532.37,0.00038904,120]
[336493071,1724877326220,-505.67793497,0.00038904,120]
[336493072,1724877326254,-500.0,0.00038904,120]
[336493073,1724877326290,-550.15,0.00038904,120]
[336493074,1724877326328,-1642.06,0.00038904,120]
[336493075,1724877326365,-500.0,0.00038904,120]
[336493076,1724877326403,-2059.24,0.00038904,120]
[336493077,1724877326440,-1523.17,0.00038904,120]
[336493078,1724877326686,-500.0,0.00038904,120]
[336493079,1724877326727,-500.0,0.00038904,120]
[336493080,1724877326766,-973.03,0.00038904,120]
[336493081,1724877326806,-3335.68,0.00038904,120]
[336493082,1724877326846,-500.0,0.00038904,120]
[336493083,1724877326884,-1885.57,0.00038904,120]
[336493084,1724877326922,-500.0,0.00038904,120]
[336493085,1724877326963,-500.0,0.00038904,120]
[336493086,1724877327001,-500.0,0.00038904,120]
[336493087,1724877327038,-500.0,0.00038904,120]
[336493088,1724877327074,-751.57,0.00038904,120]
[336493089,1724877327111,-500.0,0.00038904,120]
[336493090,1724877327148,-500.0,0.00038904,120]
[336493091,1724877327188,-500.0,0.00038904,120]
[336493092,1724877327227,-706.58,0.00038904,120]
[336493093,1724877327264,-500.0,0.00038904,120]
[336493094,1724877327302,-558.78,0.00038904,120]
[336493095,1724877327340,-500.0,0.00038904,120]
[336493096,1724877327380,-2205.78,0.00038904,120]
[336493097,1724877327420,-500.0,0.00038904,120]
[336493098,1724877327461,-2387.48,0.00038904,120]
[336493099,1724877327500,-500.0,0.00038904,120]
[336493100,1724877327539,-1369.69,0.00038904,120]
[336493101,1724877327577,-500.0,0.00038904,120]
[336493102,1724877327617,-1086.45,0.00038904,120]
[336493103,1724877327657,-751.52,0.00038904,120]
[336493104,1724877327694,-500.0,0.00038904,120]
[336493105,1724877327734,-500.0,0.00038904,120]
[336493106,1724877327774,-2354.01,0.00038904,120]
[336493107,1724877327826,-500.0,0.00038904,120]
[336493108,1724877327867,-500.0,0.00038904,120]
[336493109,1724877327917,-500.0,0.00038904,120]
[336493110,1724877327956,-1658.34,0.00038904,120]
[336493111,1724877327998,-1234.0,0.00038904,120]
[336493112,1724877328038,-500.0,0.00038904,120]
[336493113,1724877328078,-500.0,0.00038904,120]
[336493114,1724877328119,-500.0,0.00038904,120]
[336493115,1724877328160,-500.0,0.00038904,120]
[336493116,1724877328201,-685.52,0.00038904,120]
[336493117,1724877328248,-2029.02,0.00038904,120]
[336493118,1724877328289,-500.0,0.00038904,120]
[336493119,1724877328327,-500.0,0.00038904,120]
[336493120,1724877328368,-500.0,0.00038904,120]
[336493121,1724877328410,-500.0,0.00038904,120]
[336493122,1724877328448,-500.0,0.00038904,120]
[336493123,1724877328490,-1023.89,0.00038904,120]
[336493124,1724877328527,-971.57,0.00038904,120]
[336493125,1724877328563,-763.91,0.00038904,120]
[336493126,1724877328601,-5515.45,0.00038904,120]
[336493127,1724877328638,-500.0,0.00038904,120]
[336493128,1724877328675,-501.73261035,0.00038904,120]
[336493129,1724877328716,-500.0,0.00038904,120]
[336493130,1724877328755,-3327.24,0.00038904,120]
[336493131,1724877328793,-551.98,0.00038904,120]
[336493132,1724877328831,-567.98,0.00038904,120]
[336493133,1724877328868,-2093.29,0.00038904,120]
[336493134,1724877328906,-500.0,0.00038904,120]
[336493135,1724877328943,-637.76,0.00038904,120]
[336493136,1724877328984,-500.0,0.00038904,120]
[336493137,1724877329021,-500.0,0.00038904,120]
[336493138,1724877329058,-835.36,0.00038904,120]
[336493139,1724877329093,-665.08,0.00038904,120]
[336493140,1724877329128,-3943.39,0.00038904,120]
[336493141,1724877329163,-500.0,0.00038904,120]
[336493142,1724877329197,-837.27,0.00038904,120]
[336493143,1724877329240,-838.13,0.00038904,120]
[336493144,1724877329275,-2950.06,0.00038904,120]
[336493145,1724877329310,-1676.84,0.00038904,120]
[336493146,1724877329344,-1096.71,0.00038904,120]
[336493147,1724877329383,-500.0,0.00038904,120]
[336493148,1724877329419,-500.0,0.00038904,120]
[336493149,1724877329455,-2467.32,0.00038904,120]
[336493150,1724877329492,-928.58,0.00038904,120]
[336493151,1724877329529,-3079.68,0.00038904,120]
[336493152,1724877329564,-500.0,0.00038904,120]
[336493153,1724877329599,-3299.63,0.00038904,120]
[336493154,1724877329636,-1696.78,0.00038904,120]
[336493155,1724877329671,-500.0,0.00038904,120]
[336493156,1724877329706,-959.26,0.00038904,120]
[336493157,1724877329744,-3188.88,0.00038904,120]
[336493158,1724877329778,-500.0,0.00038904,120]
[336493159,1724877329814,-500.0,0.00038904,120]
[336493160,1724877329851,-500.0,0.00038904,120]
[336493161,1724877329889,-500.0,0.00038904,120]
[336493162,1724877329925,-2842.31,0.00038904,120]
[336493163,1724877329962,-500.0,0.00038904,120]
[336493164,1724877329997,-761.77,0.00038904,120]
[336493165,1724877330032,-500.0,0.00038904,120]
[336493166,1724877330067,-500.0,0.00038904,120]
[336493167,1724877330101,-750.46,0.00038904,120]
[336493168,1724877330136,-500.0,0.00038904,120]
[336493169,1724877330170,-807.75,0.00038904,120]
[336493170,1724877330205,-500.0,0.00038904,120]
[336493171,1724877330241,-500.0,0.00038904,120]
[336493172,1724877330275,-166.07809847,0.00038904,120]
[336493173,1724877330310,-500.0,0.00038904,120]
[336493174,1724877330347,-859.46,0.00038904,120]
[336493175,1724877330383,-3921.9,0.00038904,120]
[336493176,1724877330421,-481.55,0.00038904,120]
[336493177,1724877330461,-500.0,0.00038904,120]
[336493178,1724877330498,-500.0,0.00038904,120]
[336493179,1724877330537,-500.0,0.00038904,120]
[336493180,1724877330572,-500.0,0.00038904,120]
[336493181,1724877330608,-913.04,0.00038904,120]
[336493182,1724877330847,-500.0,0.00038904,120]
[336493183,1724877330888,-500.0,0.00038904,120]
[336493184,1724877330926,-500.0,0.00038904,120]
[336493185,1724877330964,-555.53,0.00038904,120]
[336493186,1724877331000,-285.13880274,0.00038904,120]
[336493187,1724877331036,-500.0,0.00038904,120]
[336493188,1724877331072,-5248.61,0.00038904,120]
[336493189,1724877331109,-500.0,0.00038904,120]
[336493190,1724877331145,-500.0,0.00038904,120]
[336493191,1724877331182,-629.06,0.00038904,120]
[336493192,1724877331220,-3477.12,0.00038904,120]
[336493193,1724877331255,-1126.54,0.00038904,120]
[336493194,1724877331292,-1552.91,0.00038904,120]
[336493195,1724877331328,-1717.58,0.00038904,120]
[336493196,1724877331366,-598.49319027,0.00038904,120]
[336493197,1724877331403,-500.0,0.00038904,120]
[336493198,1724877331441,-500.0,0.00038904,120]
[336493199,1724877331478,-500.0,0.00038904,120]
[336493200,1724877331512,-1654.4,0.00038904,120]
[336493201,1724877331547,-500.0,0.00038904,120]
[336493202,1724877331581,-2522.61,0.00038904,120]
[336493203,1724877331619,-2339.24,0.00038904,120]
[336493204,1724877331656,-1542.02,0.00038904,120]
[336493205,1724877331693,-500.0,0.00038904,120]
[336493206,1724877331729,-541.36569103,0.00038904,120]
[336493207,1724877331766,-781.97,0.00038904,120]
[336493208,1724877331804,-500.0,0.00038904,120]
[336493209,1724877331839,-564.3,0.00038904,120]
[336493210,1724877331874,-673.77,0.00038904,120]
[336493211,1724877331913,-776.56,0.00038904,120]
[336493212,1724877331951,-3090.37,0.00038904,120]
[336493213,1724877331990,-4322.06,0.00038904,120]
[336493214,1724877332029,-500.0,0.00038904,120]
[336493215,1724877332064,-3147.94,0.00038904,120]
[336493216,1724877332100,-3772.86,0.00038904,120]
[336493217,1724877332134,-500.0,0.00038904,120]
[336493218,1724877332169,-531.13398613,0.00038904,120]
[336493219,1724877332202,-500.0,0.00038904,120]
[336493220,1724877332238,-1446.77,0.00038904,120]
[336493221,1724877332272,-500.0,0.00038904,120]
[336493222,1724877332306,-738.44,0.00038904,120]
[336493223,1724877332341,-843.24,0.00038904,120]
[336493224,1724877332380,-3195.25,0.00038904,120]
[336493225,1724877332419,-500.0,0.00038904,120]
[336493226,1724877332458,-190.27753335,0.00038904,120]
[336493227,1724877332502,-582.75,0.00038904,120]
[336493228,1724877332540,-500.0,0.00038904,120]
[336493229,1724877332576,-1168.97,0.00038904,120]
[336493230,1724877332613,-500.0,0.00038904,120]
[336493231,1724877332651,-1231.52,0.00038904,120]
[336493232,1724877332687,-500.0,0.00038904,120]
[336493233,1724877332723,-500.63641269,0.00038904,120]
[336493234,1724877332762,-500.0,0.00038904,120]
[336493235,1724877332801,-2199.82,0.00038904,120]
[336493236,1724877332838,-2372.86,0.00038904,120]
[336493237,1724877332876,-548.24,0.00038904,120]
[336493238,1724877332916,-1493.13,0.00038904,120]
[336493239,1724877332955,-500.0,0.00038904,120]
[336493240,1724877333000,-500.0,0.00038904,120]
[336493241,1724877333040,-500.0,0.00038904,120]
[336493242,1724877333082,-500.0,0.00038904,120]
[336493243,1724877333121,-1646.72,0.00038904,120]
[336493244,1724877333160,-4273.92,0.00038904,120]
[336493245,1724877333200,-500.0,0.00038904,120]
[336493246,1724877333242,-464.10684051,0.00038904,120]
[336493247,1724877333281,-500.0,0.00038904,120]
[336493248,1724877333321,-500.0,0.00038904,120]
[336493249,1724877333361,-551.45,0.00038904,120]
[336493250,1724877333399,-1602.97,0.00038904,120]
[336493251,1724877333437,-833.68,0.00038904,120]
[336493252,1724877333476,-2101.67,0.00038904,120]
[336493253,1724877333514,-1804.35,0.00038904,120]
[336493254,1724877333552,-500.0,0.00038904,120]
[336493255,1724877333589,-500.0,0.00038904,120]
[336493256,1724877333627,-4031.24,0.00038904,120]
[336493257,1724877333665,-492.94637788,0.00038904,120]
[336493258,1724877333705,-1224.54,0.00038904,120]
[336493259,1724877333748,-500.0,0.00038904,120]
[336493260,1724877333788,-554.68,0.00038904,120]
[336493261,1724877333829,-2603.06,0.00038904,120]
[336493262,1724877333871,-500.0,0.00038904,120]
[336493263,1724877333917,-500.0,0.00038904,120]
[336493264,1724877333959,-818.77,0.00038904,120]
[336493265,1724877334001,-607.04,0.00038904,120]
[336493266,1724877334042,-585.38,0.00038904,120]
[336493267,1724877334083,-2541.0,0.00038904,120]
[336493268,1724877334122,-1315.7,0.00038904,120]
[336493269,1724877334161,-3487.84,0.00038904,120]
[336493270,1724877334200,-500.0,0.00038904,120]
[336493271,1724877334240,-876.36,0.00038904,120]
[336493272,1724877334279,-500.0,0.00038904,120]
[336493273,1724877334318,-554.4,0.00038904,120]
[336493274,1724877334357,-500.0,0.00038904,120]
[336493275,1724877334397,-2017.91,0.00038904,120]
[336493276,1724877334438,-500.0,0.00038904,120]
[336493277,1724877334479,-3610.88,0.00038904,120]
[336493278,1724877334519,-1861.85,0.00038904,120]
[336493279,1724877334561,-960.31,0.00038904,120]
[336493280,1724877334601,-1878.21,0.00038904,120]
[336493281,1724877334639,-897.42,0.00038904,120]
[336493282,1724877334679,-3828.16,0.00038904,120]
[336493283,1724877334720,-981.7,0.00038904,120]
[336493284,1724877334760,-6283.78,0.00038904,120]
[336493285,1724877334799,-500.0,0.00038904,120]
[336493286,1724877335042,-505.28001355,0.00038904,120]
[336493287,1724877335084,-500.0,0.00038904,120]
[336493288,1724877335123,-500.0,0.00038904,120]
[336493289,1724877335163,-4174.03,0.00038904,120]
[336493290,1724877335202,-518.56,0.00038904,120]
[336493291,1724877335242,-885.5,0.00038904,120]
[336493292,1724877335279,-1202.02,0.00038904,120]
[336493293,1724877335316,-500.0,0.00038904,120]
[336493294,1724877335355,-2869.16,0.00038904,120]
[336493295,1724877335392,-504.6258665,0.00038904,120]
[336493296,1724877335435,-500.0,0.00038904,120]
[336493297,1724877335477,-2146.61,0.00038904,120]
[336493298,1724877335516,-2452.46,0.00038904,120]
[336493299,1724877335553,-500.0,0.00038904,120]
[336493300,1724877335592,-1906.44,0.00038904,120]
[336493301,1724877335631,-638.3,0.00038904,120]
[336493302,1724877335668,-619.05,0.00038904,120]
[336493303,1724877335706,-500.0,0.00038904,120]
[336493304,1724877335755,-657.06,0.00038904,120]
[336493305,1724877335794,-500.0,0.00038904,120]
[336493306,1724877335835,-528.03597786,0.00038904,120]
[336493307,1724877335874,-500.0,0.00038904,120]
[336493308,1724877335913,-3724.88,0.00038904,120]
[336493309,1724877335956,-932.86,0.00038904,120]
[336493310,1724877335996,-1814.39,0.00038904,120]
[336493311,1724877336036,-500.0,0.00038904,120]
[336493312,1724877336074,-1305.88,0.00038904,120]
[336493313,1724877336114,-1837.49,0.00038904,120]
[336493314,1724877336151,-500.0,0.00038904,120]
[336493315,1724877336189,-500.0,0.00038904,120]
[336493316,1724877336228,-1234.41,0.00038904,120]
[336493317,1724877336269,-2141.06,0.00038904,120]
[336493318,1724877336307,-500.0,0.00038904,120]
[336493319,1724877336349,-500.0,0.00038904,120]
[336493320,1724877336391,-969.8,0.00038904,120]
[336493321,1724877336431,-474.70060558,0.00038904,120]
[336493322,1724877336475,-886.0,0.00038904,120]
[336493323,1724877336513,-500.0,0.00038904,120]
[336493324,1724877336550,-2200.34,0.00038904,120]
[336493325,1724877336587,-3349.22,0.00038904,120]
[336493326,1724877336629,-2000.0,0.00038904,120]
[336493327,1724877336668,-5137.4,0.00038904,120]
[336493328,1724877336706,-1074.98,0.00038904,120]
[336493329,1724877336746,-4084.51,0.00038904,120]
[336493330,1724877336784,-500.0,0.00038904,120]
[336493331,1724877336826,-5733.23,0.00038904,120]
[336493332,1724877336865,-1521.27,0.00038904,120]
[336493333,1724877336901,-1698.16,0.00038904,120]
[336493334,1724877336938,-500.0,0.00038904,120]
[336493335,1724877336974,-1500.0,0.00038904,120]
[336493336,1724877337013,-4196.08,0.00038904,120]
[336493337,1724877337050,-500.0,0.00038904,120]
[336493338,1724877337088,-500.0,0.00038904,120]
[336493339,1724877337129,-1115.8,0.00038904,120]
[336493340,1724877337169,-500.0,0.00038904,120]
[336493341,1724877337210,-1272.36,0.00038904,120]
[336493342,1724877337250,-557.46,0.00038904,120]
[336493343,1724877337290,-1678.18,0.00038904,120]
[336493344,1724877337328,-500.0,0.00038904,120]
[336493345,1724877337366,-500.0,0.00038904,120]
[336493346,1724877337403,-2122.28,0.00038904,120]
[336493347,1724877337442,-974.29,0.00038904,120]
[336493348,1724877337480,-897.55,0.00038904,120]
[336493349,1724877337516,-1511.65,0.00038904,120]
[336493350,1724877337554,-1456.57,0.00038904,120]
[336493351,1724877337592,-17126.44,0.00038904,120]
[336493352,1724877337634,-2621.51,0.00038904,120]
[336493353,1724877337681,-500.0,0.00038904,120]
[336493354,1724877337723,-544.19,0.00038904,120]
[336493355,1724877337759,-500.0,0.00038904,120]
[336493356,1724877337798,-500.0,0.00038904,120]
[336493357,1724877337836,-561.34,0.00038904,120]
[336493358,1724877337875,-500.0,0.00038904,120]
[336493359,1724877337914,-500.0,0.00038904,120]
[336493360,1724877337950,-500.0,0.00038904,120]
[336493361,1724877337990,-500.0,0.00038904,120]
[336493362,1724877338027,-500.0,0.00038904,120]
[336493363,1724877338064,-500.0,0.00038904,120]
[336493364,1724877338101,-689.62,0.00038904,120]